fUSD/lending_fUSD_20260324
["ID","MTS","AMOUNT","RATE_DAILY","PERIOD"]
[408849493,1774338828734,-688.15,0.00045205,120]
[408849494,1774338828743,-500.0,0.00045205,120]
[408849495,1774338828752,-4167.56,0.00045205,14]
[408849496,1774338828761,-515.79,0.00045205,120]
[408849497,1774338828771,-787.69,0.00045205,120]
[408849498,1774338828780,-698.8,0.00045205,120]
[408849499,1774338828790,-653.93,0.00045205,120]
[408849500,1774338828800,-400.0,0.00045205,120]
[408849501,1774338828809,-866.06,0.00045205,120]
[408849502,1774338828818,-400.0,0.00045205,120]
[408849503,1774338828827,-659.88,0.00045205,120]
[408849504,1774338828836,-400.0,0.00045205,120]
[408849505,1774338828845,-400.0,0.00045205,120]
[408849506,1774338828854,-2147.96,0.00045205,120]
[408849507,1774338828864,-936.69,0.00045205,120]
[408849508,1774338828873,-500.0,0.00045205,120]
[408849509,1774338828882,-400.0,0.00045205,120]
[408849510,1774338828892,-400.0,0.00045205,120]
[408849511,1774338828901,-400.0,0.00045205,120]
[408849512,1774338828910,-898.82,0.00045205,120]
[408849513,1774338828919,-400.0,0.00045205,120]
[408849514,1774338828928,-627.57,0.00045205,120]
[408849515,1774338828937,-400.0,0.00045205,120]
[408849516,1774338828946,-400.0,0.00045205,120]
[408849517,1774338828955,-400.0,0.00045205,120]
[408849518,1774338828965,-400.0,0.00045205,120]
[408849519,1774338828974,-400.0,0.00045205,120]
[408849520,1774338828982,-400.0,0.00045205,120]
[408849521,1774338828992,-1680.93,0.00045205,120]
[408849522,1774338829001,-400.0,0.00045205,120]
[408849523,1774338829010,-400.0,0.00045205,120]
[408849524,1774338829019,-647.52887963,0.00045205,120]
[408849525,1774338829028,-516.86,0.00045205,120]
[408849526,1774338829037,-1731.35,0.00045205,120]
[408849527,1774338829046,-1894.96,0.00045205,120]
[408849528,1774338829055,-570.78,0.00045205,120]
[408849529,1774338829064,-833.21,0.00045205,120]
[408849530,1774338829073,-500.0,0.00045205,120]
[408849531,1774338829082,-678.17,0.00045205,120]
[408849532,1774338829092,-500.0,0.00045205,120]
[408849533,1774338829101,-1154.53,0.00045205,120]
[408849534,1774338829110,-532.48,0.00045205,120]
[408849535,1774338829119,-1168.04,0.00045205,120]
[408849536,1774338829129,-220.56,0.00045205,120]
[408849537,1774338829138,-1084.15,0.00045205,120]
[408849538,1774338829147,-1543.41,0.00045205,120]
[408849539,1774338829157,-524.04,0.00045205,120]
[408849540,1774338829166,-1735.5,0.00045205,120]
[408849541,1774338829175,-528.45,0.00045205,120]
[408849542,1774338829184,-507.54,0.00045205,60]
[408849543,1774338829193,-1522.45,0.00045205,120]
[408849544,1774338829203,-1728.67,0.00045205,120]
[408849545,1774338829212,-1193.94,0.00045205,120]
[408849546,1774338829221,-2483.59,0.00045205,120]
[408849547,1774338829230,-1145.4,0.00045205,120]
[408849548,1774338829241,-500.0,0.00045205,120]
[408849549,1774338829251,-785.33,0.00045205,120]
[408849550,1774338829260,-802.88,0.00045205,120]
[408849551,1774338829270,-773.31,0.00045205,120]
[408849552,1774338829279,-504.31,0.00045205,120]
[408849553,1774338829289,-1766.83,0.00045205,120]
[408849554,1774338829298,-766.14,0.00045205,120]
[408849555,1774338829307,-655.33,0.00045205,120]
[408849556,1774338829317,-500.0,0.00045205,120]
[408849557,1774338829325,-8117.29,0.00045205,120]
[408849558,1774338829335,-1429.82,0.00045205,120]
[408849559,1774338829344,-500.0,0.00045205,120]
[408849560,1774338829353,-1503.53,0.00045205,120]
[408849561,1774338829362,-1630.29,0.00045205,120]
[408849562,1774338829372,-841.35,0.00045205,120]
[408849563,1774338829382,-673.28,0.00045205,120]
[408849564,1774338829398,-1387.91,0.00045205,120]
[408849565,1774338829421,-500.0,0.00045205,7]
[408849566,1774338829437,-500.0,0.00045205,120]
[408849567,1774338829447,-604.72,0.00045205,120]
[408849568,1774338829456,-680.83,0.00045205,120]
[408849569,1774338829466,-1280.15,0.00045205,120]
[408849570,1774338829475,-1687.32,0.00045205,120]
[408849571,1774338829485,-553.79,0.00045205,120]
[408849572,1774338829494,-500.0,0.00045205,120]
[408849573,1774338829504,-500.0,0.00045205,120]
[408849574,1774338829512,-583.19,0.00045205,120]
[408849575,1774338829523,-500.0,0.00045205,120]
[408849576,1774338829532,-500.0,0.00045205,120]
[408849577,1774338829542,-765.82,0.00045205,120]
[408849578,1774338829551,-500.0,0.00045205,120]
[408849579,1774338829560,-2264.25,0.00045205,120]
[408849580,1774338829569,-1037.3,0.00045205,30]
[408849581,1774338829578,-1021.05,0.00045205,120]
[408849582,1774338829587,-2339.0,0.00045205,120]
[408849583,1774338829597,-602.59,0.00045205,120]
[408849584,1774338829606,-1084.43,0.00045205,120]
[408849585,1774338829616,-1040.73,0.00045205,120]
[408849586,1774338829626,-596.46133099,0.00045205,120]
[408849587,1774338829635,-851.46,0.00045205,120]
[408849588,1774338829644,-1082.75,0.00045205,120]
[408849589,1774338829653,-1633.66,0.00045205,120]
[408849590,1774338829663,-4460.36,0.00045205,120]
[408849591,1774338829672,-1090.06,0.00045205,120]
[408849592,1774338829683,-1298.83,0.00045205,120]
[408849593,1774338829692,-545.35,0.00045205,120]
[408849594,1774338829702,-911.41,0.00045205,120]
[408849595,1774338829712,-1399.28,0.00045205,120]
[408849596,1774338829721,-4326.06,0.00045205,120]
[408849597,1774338829730,-637.83,0.00045205,120]
[408849598,1774338829739,-863.52,0.00045205,60]
[408849599,1774338829749,-521.47,0.00045205,120]
[408849600,1774338829758,-500.0,0.00045205,120]
[408849601,1774338829768,-500.0,0.00045205,14]
[408849602,1774338829777,-500.0,0.00045205,120]
[408849603,1774338829787,-1041.22,0.00045205,120]
[408849604,1774338829798,-500.0,0.00045205,120]
[408849605,1774338829807,-711.52,0.00045205,120]
[408849606,1774338829817,-790.74,0.00045205,120]
[408849607,1774338829826,-2031.81,0.00045205,120]
[408849608,1774338829836,-1067.59,0.00045205,120]
[408849609,1774338829845,-1154.84,0.00045205,120]
[408849610,1774338829855,-1104.3,0.00045205,120]
[408849611,1774338829864,-2348.54,0.00045205,120]
[408849612,1774338829873,-1560.13,0.00045205,120]
[408849613,1774338829882,-541.43,0.00045205,120]
[408849614,1774338829890,-500.0,0.00045205,120]
[408849615,1774338829898,-535.0,0.00045205,120]
[408849616,1774338829906,-858.21,0.00045205,120]
[408849617,1774338829914,-500.0,0.00045205,120]
[408849618,1774338829922,-1021.53,0.00045205,120]
[408849619,1774338829930,-1539.96,0.00045205,120]
[408849620,1774338829938,-592.83,0.00045205,120]
[408849621,1774338829947,-519.74,0.00045205,120]
[408849622,1774338829956,-500.0,0.00045205,120]
[408849623,1774338829964,-813.09,0.00045205,120]
[408849624,1774338829973,-1598.49,0.00045205,120]
[408849625,1774338829981,-2149.78,0.00045205,120]
[408849626,1774338829989,-513.33,0.00045205,120]
[408849627,1774338829998,-833.01,0.00045205,120]
[408849628,1774338830006,-656.49,0.00045205,120]
[408849629,1774338830014,-700.59,0.00045205,120]
[408849630,1774338830022,-500.0,0.00045205,120]
[408849631,1774338830032,-728.42,0.00045205,120]
[408849632,1774338830040,-500.0,0.00045205,120]
[408849633,1774338830049,-500.0,0.00045205,120]
[408849634,1774338830057,-851.0,0.00045205,120]
[408849635,1774338830065,-228.515828,0.00045205,120]
[408849636,1774338830073,-151.0,0.00045205,120]
[408849637,1774338830081,-151.0,0.00045205,120]
[408849638,1774338830090,-151.0,0.00045205,120]
[408849639,1774338830100,-151.0,0.00045205,120]
[408849640,1774338830109,-151.0,0.00045205,120]
[408849641,1774338830118,-151.0,0.00045205,120]
[408849642,1774338830126,-151.0,0.00045205,120]
[408849643,1774338830135,-243.190361,0.00045205,120]
[408849644,1774338830143,-243.190361,0.00045205,120]
[408849645,1774338830152,-243.190361,0.00045205,120]
[408849646,1774338830160,-243.190361,0.00045205,120]
[408849647,1774338830169,-243.190361,0.00045205,120]
[408849648,1774338830178,-243.190361,0.00045205,120]
[408849649,1774338830187,-243.190361,0.00045205,120]
[408849650,1774338830195,-243.190361,0.00045205,120]
[408849651,1774338830204,-243.190361,0.00045205,120]
[408849652,1774338830212,-243.190361,0.00045205,120]
[408849653,1774338830221,-243.190361,0.00045205,120]
[408849654,1774338830229,-243.190361,0.00045205,120]
[408849655,1774338830238,-243.190361,0.00045205,120]
[408849656,1774338830246,-243.190361,0.00045205,120]
[408849657,1774338830255,-243.190361,0.00045205,120]
[408849658,1774338830264,-243.190361,0.00045205,120]
[408849659,1774338830273,-243.190361,0.00045205,120]
[408849660,1774338830281,-243.190361,0.00045205,120]
[408849661,1774338830291,-243.190361,0.00045205,120]
[408849662,1774338830303,-243.190358,0.00045205,120]
[408849663,1774338830313,-151.0,0.00045205,120]
[408849664,1774338830324,-151.0,0.00045205,120]
[408849665,1774338830333,-151.0,0.00045205,120]
[408849666,1774338830343,-178.034718,0.00045205,120]
[408849667,1774338830352,-199.49764,0.00045205,60]
[408849668,1774338830361,-199.49764,0.00045205,60]
[408849669,1774338830370,-199.49764,0.00045205,60]
[408849670,1774338830379,-199.49764,0.00045205,60]
[408849671,1774338830389,-199.49764,0.00045205,60]
[408849672,1774338830398,-199.49764,0.00045205,60]
[408849673,1774338830408,-199.49764,0.00045205,60]
[408849674,1774338830418,-199.49764,0.00045205,60]
[408849675,1774338830427,-199.49764,0.00045205,60]
[408849676,1774338830435,-199.49764,0.00045205,60]
[408849677,1774338830444,-199.49764,0.00045205,60]
[408849678,1774338830454,-199.49764,0.00045205,60]
[408849679,1774338830463,-199.49764,0.00045205,60]
[408849680,1774338830471,-199.49764,0.00045205,60]
[408849681,1774338830480,-199.49764,0.00045205,60]
[408849682,1774338830489,-199.49764,0.00045205,60]
[408849683,1774338830498,-199.49764,0.00045205,60]
[408849684,1774338830507,-199.49764,0.00045205,60]
[408849685,1774338830518,-199.49764,0.00045205,60]
[408849686,1774338830528,-199.49765,0.00045205,60]
[408849687,1774338830538,-151.0,0.00045205,120]
[408849688,1774338830547,-151.0,0.00045205,120]
[408849689,1774338830556,-251.292929,0.00045205,120]
[408849690,1774338830566,-281.075524,0.00045205,120]
[408849691,1774338830575,-216.155703,0.00045205,120]
[408849692,1774338830584,-151.0,0.00045205,120]
[408849693,1774338830593,-258.558004,0.00045205,120]
[408849694,1774338830603,-202.811579,0.00045205,120]
[408849695,1774338830612,-151.0,0.00045205,120]
[408849696,1774338830622,-151.0,0.00045205,120]
[408849697,1774338830631,-151.0,0.00045205,120]
[408849698,1774338830642,-151.0,0.00045205,120]
[408849699,1774338830651,-151.0,0.00045205,120]
[408849700,1774338830660,-251.691776,0.00045205,120]
[408849701,1774338830670,-151.0,0.00045205,120]
[408849702,1774338830680,-151.0,0.00045205,120]
[408849703,1774338830690,-151.0,0.00045205,120]
[408849704,1774338830699,-151.0,0.00045205,120]
[408849705,1774338830709,-151.0,0.00045205,120]
[408849706,1774338830719,-151.0,0.00045205,120]
[408849707,1774338830729,-152.63736,0.00045205,120]
[408849708,1774338830740,-151.0,0.00045205,30]
[408849709,1774338830750,-294.230944,0.00045205,30]
[408849710,1774338830760,-166.82766,0.00045205,120]
[408849711,1774338830771,-172.275686,0.00045205,120]
[408849712,1774338830781,-201.581784,0.00045205,120]
[408849713,1774338830790,-200.205108,0.00045205,120]
[408849714,1774338830800,-386.226686,0.00045205,120]
[408849715,1774338830810,-386.226686,0.00045205,120]
[408849716,1774338830819,-386.226686,0.00045205,120]
[408849717,1774338830831,-386.226686,0.00045205,120]
[408849718,1774338830843,-386.226686,0.00045205,120]
[408849719,1774338830853,-386.226686,0.00045205,120]
[408849720,1774338830864,-386.226686,0.00045205,120]
[408849721,1774338830876,-386.226686,0.00045205,120]
[408849722,1774338830885,-386.226686,0.00045205,120]
[408849723,1774338830894,-386.226686,0.00045205,120]
[408849724,1774338830903,-386.226686,0.00045205,120]
[408849725,1774338830912,-386.226686,0.00045205,120]
[408849726,1774338830921,-386.226686,0.00045205,120]
[408849727,1774338830931,-386.226686,0.00045205,120]
[408849728,1774338830940,-234.496024,0.00045205,120]
[408849729,1774338830950,-386.226686,0.00045205,120]
[408849730,1774338830959,-234.496024,0.00045205,120]
[408849731,1774338830969,-386.226686,0.00045205,120]
[408849732,1774338830979,-234.496024,0.00045205,120]
[408849733,1774338830990,-386.226686,0.00045205,120]
[408849734,1774338831000,-234.496024,0.00045205,120]
[408849735,1774338831010,-386.226686,0.00045205,120]
[408849736,1774338831019,-234.496024,0.00045205,120]
[408849737,1774338831029,-386.226686,0.00045205,120]
[408849738,1774338831039,-234.496024,0.00045205,120]
[408849739,1774338831048,-386.226687,0.00045205,120]
[408849740,1774338831058,-234.496024,0.00045205,120]
[408849741,1774338831069,-234.496024,0.00045205,120]
[408849742,1774338831079,-234.496024,0.00045205,120]
[408849743,1774338831091,-234.496024,0.00045205,120]
[408849744,1774338831102,-234.496024,0.00045205,120]
[408849745,1774338831112,-234.496024,0.00045205,120]
[408849746,1774338831121,-234.496024,0.00045205,120]
[408849747,1774338831131,-1569.0,0.00045294,16]
[408849748,1774338831148,-803.04,0.000453,120]
[408849749,1774338831157,-154.0,0.000453,120]
[408849750,1774338831168,-150.0,0.00045346,30]
[408849751,1774338831179,-150.0,0.00045348,120]
[408849752,1774338831190,-150.0,0.00045383,120]
[408849753,1774338831201,-592.0,0.000454,120]
[408849754,1774338831211,-2000000.0,0.000454,120]
[408849755,1774338831221,-325.0,0.00045444,16]
[408849756,1774338831231,-5470.90349399,0.00045478,60]
[408849757,1774338831241,-743.4779064,0.00045479,120]
[408849758,1774338831253,-590.67,0.00045479,120]
[408849759,1774338831263,-1000.0,0.00045479,120]
[408849760,1774338831275,-705.66,0.00045479,120]
[408849761,1774338831285,-943.74,0.00045479,120]
[408849762,1774338831296,-500.0,0.00045479,120]
[408849763,1774338831307,-507.3,0.00045479,120]
[408849764,1774338831318,-568.39,0.00045479,120]
[408849765,1774338831328,-729.64,0.00045479,120]
[408849766,1774338831338,-639.9,0.00045479,120]
[408849767,1774338831348,-651.21,0.00045479,120]
[408849768,1774338831358,-299.80899875,0.00045479,120]
[408849769,1774338831368,-524.6,0.00045479,120]
[408849770,1774338831377,-978.66,0.00045479,120]
[408849771,1774338831389,-500.0,0.00045479,30]
[408849772,1774338831402,-1180.13,0.00045479,120]
[408849773,1774338831416,-500.0,0.00045479,120]
[408849774,1774338831427,-574.37,0.00045479,120]
[408849775,1774338831439,-1281.45,0.00045479,120]
[408849776,1774338831451,-1329.75,0.00045479,120]
[408849777,1774338831460,-500.0,0.00045479,120]
[408849778,1774338831471,-500.0,0.00045479,90]
[408849779,1774338831483,-880.66,0.00045479,5]
[408849780,1774338831492,-599.98,0.00045479,120]
[408849781,1774338831502,-651.22,0.00045479,120]
[408849782,1774338831512,-500.0,0.00045479,120]
[408849783,1774338831523,-539.9,0.00045479,120]
[408849784,1774338831533,-604.85,0.00045479,120]
[408849785,1774338831543,-1076.85,0.00045479,120]
[408849786,1774338831553,-766.13,0.00045479,120]
[408849787,1774338831563,-617.48,0.00045479,120]
[408849788,1774338831572,-500.0,0.00045479,120]
[408849789,1774338831583,-835.56,0.00045479,120]
[408849790,1774338831595,-792.41,0.00045479,120]
[408849791,1774338831606,-500.0,0.00045479,120]
[408849792,1774338831615,-1234.56,0.00045479,120]
[408849793,1774338831626,-890.18,0.00045479,120]
[408849794,1774338831638,-500.0,0.00045479,120]
[408849795,1774338831648,-1024.48,0.00045479,120]
[408849796,1774338831657,-500.0,0.00045479,120]
[408849797,1774338831667,-766.51,0.00045479,120]
[408849798,1774338831677,-677.14,0.00045479,120]
[408849799,1774338831690,-2135.18,0.00045479,120]
[408849800,1774338831708,-563.34,0.00045479,120]
[408849801,1774338831718,-1402.94,0.00045479,120]
[408849802,1774338831728,-761.77,0.00045479,120]
[408849803,1774338832028,-1465.28,0.00045479,120]
[408849804,1774338832040,-500.0,0.00045479,120]
[408849805,1774338832050,-500.0,0.00045479,120]
[408849806,1774338832059,-598.21,0.00045479,120]
[408849807,1774338832069,-500.0,0.00045479,120]
[408849808,1774338832078,-1412.93,0.00045479,120]
[408849809,1774338832088,-500.0,0.00045479,120]
[408849810,1774338832098,-846.4,0.00045479,120]
[408849811,1774338832107,-500.0,0.00045479,120]
[408849812,1774338832117,-804.53,0.00045479,120]
[408849813,1774338832127,-862.09,0.00045479,120]
[408849814,1774338832136,-967.16,0.00045479,120]
[408849815,1774338832146,-649.68,0.00045479,120]
[408849816,1774338832156,-897.41,0.00045479,120]
[408849817,1774338832166,-1647.3,0.00045479,120]
[408849818,1774338832175,-500.0,0.00045479,120]
[408849819,1774338832185,-932.54,0.00045479,120]
[408849820,1774338832195,-1817.92,0.00045479,120]
[408849821,1774338832205,-587.58455201,0.00045479,120]
[408849822,1774338832215,-500.0,0.00045479,120]
[408849823,1774338832224,-1328.91,0.00045479,120]
[408849824,1774338832235,-1294.19,0.00045479,120]
[408849825,1774338832244,-500.0,0.00045479,120]
[408849826,1774338832253,-3681.23,0.00045479,120]
[408849827,1774338832263,-500.0,0.00045479,120]
[408849828,1774338832274,-500.0,0.00045479,120]
[408849829,1774338832284,-644.74,0.00045479,120]
[408849830,1774338832294,-688.63,0.00045479,120]
[408849831,1774338832303,-572.14,0.00045479,120]
[408849832,1774338832313,-500.0,0.00045479,120]
[408849833,1774338832323,-1109.47,0.00045479,120]
[408849834,1774338832333,-549.63863051,0.00045479,120]
[408849835,1774338832342,-1361.64,0.00045479,120]
[408849836,1774338832352,-1113.98,0.00045479,120]
[408849837,1774338832361,-500.0,0.00045479,120]
[408849838,1774338832371,-804.84,0.00045479,120]
[408849839,1774338832380,-587.8,0.00045479,120]
[408849840,1774338832390,-895.35,0.00045479,120]
[408849841,1774338832400,-500.0,0.00045479,120]
[408849842,1774338832412,-640.6,0.00045479,120]
[408849843,1774338832422,-1353.62,0.00045479,120]
[408849844,1774338832432,-500.0,0.00045479,120]
[408849845,1774338832442,-663.05,0.00045479,120]
[408849846,1774338832452,-500.0,0.00045479,120]
[408849847,1774338832462,-2022.99,0.00045479,120]
[408849848,1774338832471,-993.61,0.00045479,120]
[408849849,1774338832483,-626.66309578,0.00045479,120]
[408849850,1774338832493,-526.3,0.00045479,120]
[408849851,1774338832502,-803.74,0.00045479,120]
[408849852,1774338832512,-500.0,0.00045479,120]
[408849853,1774338832522,-593.39,0.00045479,120]
[408849854,1774338832531,-773.48,0.00045479,120]
[408849855,1774338832541,-500.0,0.00045479,120]
[408849856,1774338832551,-500.0,0.00045479,120]
[408849857,1774338832560,-1169.17,0.00045479,120]
[408849858,1774338832570,-1339.98,0.00045479,120]
[408849859,1774338832579,-500.0,0.00045479,120]
[408849860,1774338832589,-599.34,0.00045479,120]
[408849861,1774338832599,-157.645705,0.00045479,120]
[408849862,1774338832608,-551.15,0.00045479,120]
[408849863,1774338832616,-1698.32,0.00045479,120]
[408849864,1774338832626,-1450.66,0.00045479,120]
[408849865,1774338832635,-818.03,0.00045479,120]
[408849866,1774338832644,-620.94,0.00045479,2]
[408849867,1774338832654,-500.0,0.00045479,120]
[408849868,1774338832664,-500.0,0.00045479,120]
[408849869,1774338832673,-500.0,0.00045479,120]
[408849870,1774338832683,-1515.34,0.00045479,120]
[408849871,1774338832693,-4192.59,0.00045479,120]
[408849872,1774338832703,-2475.9,0.00045479,120]
[408849873,1774338832713,-500.0,0.00045479,120]
[408849874,1774338832723,-500.0,0.00045479,120]
[408849875,1774338832733,-2035.37,0.00045479,120]
[408849876,1774338832743,-1009.33,0.00045479,120]
[408849877,1774338832753,-857.75,0.00045479,120]
[408849878,1774338832764,-944.17,0.00045479,120]
[408849879,1774338832776,-1317.86,0.00045479,30]
[408849880,1774338832786,-826.35,0.00045479,120]
[408849881,1774338832799,-1144.87,0.00045479,120]
[408849882,1774338832811,-588.23,0.00045479,120]
[408849883,1774338832822,-500.0,0.00045479,120]
[408849884,1774338832833,-895.15,0.00045479,120]
[408849885,1774338832844,-605.89006003,0.00045479,120]
[408849886,1774338832854,-1197.62,0.00045479,120]
[408849887,1774338832865,-1494.6,0.00045479,120]
[408849888,1774338832875,-1086.62,0.00045479,120]
[408849889,1774338832884,-500.0,0.00045479,120]
[408849890,1774338832896,-500.0,0.00045479,120]
[408849891,1774338832907,-946.8,0.00045479,120]
[408849892,1774338832917,-500.0,0.00045479,120]
[408849893,1774338832928,-713.74,0.00045479,120]
[408849894,1774338832939,-6072.1,0.00045479,120]
[408849895,1774338832948,-826.7,0.00045479,120]
[408849896,1774338832958,-1989.66,0.00045479,30]
[408849897,1774338832967,-552.86,0.00045479,120]
[408849898,1774338832977,-500.0,0.00045479,120]
[408849899,1774338832986,-926.79,0.00045479,120]
[408849900,1774338832996,-2329.55,0.00045479,120]
[408849901,1774338833006,-338.20996171,0.00045479,120]
[408849902,1774338833015,-847.68,0.00045479,120]
[408849903,1774338833025,-1646.81,0.00045479,120]
[408849904,1774338833034,-1090.68,0.00045479,120]
[408849905,1774338833045,-1885.93,0.00045479,120]
[408849906,1774338833055,-741.6,0.00045479,120]
[408849907,1774338833065,-500.0,0.00045479,120]
[408849908,1774338833075,-727.16,0.00045479,120]
[408849909,1774338833086,-712.06,0.00045479,120]
[408849910,1774338833096,-2107.35,0.00045479,120]
[408849911,1774338833106,-500.0,0.00045479,120]
[408849912,1774338833115,-617.58,0.00045479,120]
[408849913,1774338833125,-2133.23,0.00045479,120]
[408849914,1774338833135,-5833.33,0.00045479,120]
[408849915,1774338833144,-1039.39,0.00045479,120]
[408849916,1774338833154,-2468.56,0.00045479,120]
[408849917,1774338833163,-1366.12,0.00045479,120]
[408849918,1774338833172,-500.0,0.00045479,120]
[408849919,1774338833182,-1016.32,0.00045479,120]
[408849920,1774338833192,-784.59,0.00045479,120]
[408849921,1774338833203,-1478.69,0.00045479,120]
[408849922,1774338833213,-1259.9,0.00045479,120]
[408849923,1774338833222,-1107.99,0.00045479,120]
[408849924,1774338833232,-1114.05,0.00045479,120]
[408849925,1774338833241,-1519.93,0.00045479,120]
[408849926,1774338833250,-646.06,0.00045479,120]
[408849927,1774338833260,-1266.58,0.00045479,120]
[408849928,1774338833269,-1009.25,0.00045479,120]
[408849929,1774338833279,-707.37,0.00045479,120]
[408849930,1774338833289,-1156.03,0.00045479,14]
[408849931,1774338833298,-999.55,0.00045479,120]
[408849932,1774338833308,-970.63,0.00045479,120]
[408849933,1774338833318,-650.62,0.00045479,30]
[408849934,1774338833327,-725.53,0.00045479,120]
[408849935,1774338833336,-500.0,0.00045479,120]
[408849936,1774338833346,-1014.92,0.00045479,120]
[408849937,1774338833356,-2689.33,0.00045479,120]
[408849938,1774338833365,-500.0,0.00045479,120]
[408849939,1774338833374,-500.0,0.00045479,120]
[408849940,1774338833384,-581.57655486,0.00045479,120]
[408849941,1774338833393,-1544.85,0.00045479,120]
[408849942,1774338833403,-157.32758862,0.00045479,120]
[408849943,1774338833416,-515.09888195,0.00045479,120]
[408849944,1774338833425,-1269.14,0.00045479,120]
[408849945,1774338833435,-500.0,0.00045479,120]
[408849946,1774338833445,-665.15,0.00045479,120]
[408849947,1774338833455,-680.42,0.00045479,120]
[408849948,1774338833464,-500.0,0.00045479,120]
[408849949,1774338833474,-500.0,0.00045479,120]
[408849950,1774338833486,-500.0,0.00045479,120]
[408849951,1774338833495,-1769.26,0.00045479,120]
[408849952,1774338833505,-512.42,0.00045479,120]
[408849953,1774338833515,-414.79934719,0.00045479,120]
[408849954,1774338833524,-500.0,0.00045479,120]
[408849955,1774338833535,-1705.77,0.00045479,120]
[408849956,1774338833545,-978.43,0.00045479,120]
[408849957,1774338833555,-500.0,0.00045479,120]
[408849958,1774338833565,-500.0,0.00045479,120]
[408849959,1774338833575,-1215.44,0.00045479,120]
[408849960,1774338833584,-500.0,0.00045479,120]
[408849961,1774338833594,-1046.27,0.00045479,120]
[408849962,1774338833604,-500.0,0.00045479,120]
[408849963,1774338833613,-500.0,0.00045479,120]
[408849964,1774338833623,-1613.72,0.00045479,120]
[408849965,1774338833633,-1897.96,0.00045479,120]
[408849966,1774338833643,-770.58,0.00045479,120]
[408849967,1774338833653,-1960.33,0.00045479,120]
[408849968,1774338833663,-3056.27,0.00045479,120]
[408849969,1774338833672,-1228.99,0.00045479,120]
[408849970,1774338833682,-769.44,0.00045479,120]
[408849971,1774338833693,-680.28,0.00045479,120]
[408849972,1774338833703,-500.0,0.00045479,120]
[408849973,1774338833712,-500.0,0.00045479,120]
[408849974,1774338833722,-500.0,0.00045479,120]
[408849975,1774338833731,-500.0,0.00045479,120]
[408849976,1774338833741,-1078.9,0.00045479,120]
[408849977,1774338833750,-1780.32,0.00045479,120]
[408849978,1774338833760,-1099.3,0.00045479,120]
[408849979,1774338833771,-699.82,0.00045479,120]
[408849980,1774338833782,-855.78,0.00045479,120]
[408849981,1774338833792,-759.17,0.00045479,120]
[408849982,1774338833803,-931.09,0.00045479,120]
[408849983,1774338833815,-815.17,0.00045479,120]
[408849984,1774338833833,-500.0,0.00045479,120]
[408849985,1774338833843,-500.0,0.00045479,120]
[408849986,1774338833853,-656.8,0.00045479,120]
[408849987,1774338833865,-614.51,0.00045479,120]
[408849988,1774338833876,-671.25,0.00045479,120]
[408849989,1774338833886,-1323.85,0.00045479,7]
[408849990,1774338833896,-500.0,0.00045479,14]
[408849991,1774338833909,-500.0,0.00045479,120]
[408849992,1774338833921,-984.57,0.00045479,120]